fUST/lending_fUST_20250904
["ID","MTS","AMOUNT","RATE_DAILY","PERIOD"]
[383503475,1756963847321,-1030.973401,0.00013763,2]
[383503476,1756963847331,-1030.973401,0.00013763,2]
[383503477,1756963847340,-180.632282,0.00013763,2]
[383503478,1756963847350,-180.632282,0.00013763,2]
[383503479,1756963847360,-180.632282,0.00013763,2]
[383503480,1756963847369,-180.632282,0.00013763,2]
[383503481,1756963847379,-151.0,0.00013763,2]
[383503482,1756963847388,-221.632661,0.00013763,2]
[383503483,1756963847398,-151.0,0.00013763,2]
[383503484,1756963847407,-221.632661,0.00013763,2]
[383503485,1756963847417,-221.632661,0.00013763,2]
[383503486,1756963847427,-221.632661,0.00013763,2]
[383503487,1756963847436,-151.0,0.00013763,2]
[383503488,1756963847446,-151.0,0.00013763,2]
[383503489,1756963847456,-151.0,0.00013763,2]
[383503490,1756963847466,-151.0,0.00013763,2]
[383503491,1756963847475,-151.0,0.00013763,2]
[383503492,1756963847485,-151.0,0.00013763,2]
[383503493,1756963847494,-151.0,0.00013763,2]
[383503494,1756963847503,-151.0,0.00013763,2]
[383503495,1756963847514,-151.0,0.00013763,2]
[383503496,1756963847523,-151.0,0.00013763,2]
[383503497,1756963847533,-151.0,0.00013763,2]
[383503498,1756963847544,-151.0,0.00013763,2]
[383503499,1756963847553,-210331.50996017,0.00013763,2]
[383503500,1756963847563,-500.0,0.00013773,2]
[383503501,1756963847573,-500.0,0.00013773,2]
[383503502,1756963847583,-500.0,0.00013773,2]
[383503503,1756963847592,-624.81552393,0.00013773,2]
[383503504,1756963847601,-500.0,0.00013773,2]
[383503505,1756963847610,-504.30644344,0.00013773,2]
[383503506,1756963847619,-500.0,0.00013773,2]
[383503507,1756963847629,-500.0,0.00013773,2]
[383503508,1756963847638,-480.0,0.00013857,2]
[383503509,1756963847648,-480.0,0.00013857,2]
[383503510,1756963847658,-480.0,0.00013857,2]
[383503511,1756963847668,-480.0,0.00013857,2]
[383503512,1756963847677,-480.0,0.00013857,2]
[383503513,1756963847687,-480.0,0.00013857,2]
[383503514,1756963847697,-480.0,0.00013857,2]
[383503515,1756963847709,-480.0,0.00013857,2]
[383503516,1756963847718,-480.0,0.00013857,2]
[383503517,1756963847728,-480.0,0.00013857,2]
[383503518,1756963847738,-480.0,0.00013857,2]
[383503519,1756963847748,-480.0,0.00013857,2]
[383503520,1756963847758,-480.0,0.00013857,2]
[383503521,1756963847767,-480.0,0.00013857,2]
[383503522,1756963847777,-480.0,0.00013857,2]
[383503523,1756963847786,-480.0,0.00013857,2]
[383503524,1756963847796,-480.0,0.00013857,2]
[383503525,1756963847806,-480.0,0.00013857,2]
[383503526,1756963847816,-283.90437866,0.00013857,2]
[383503527,1756963847826,-480.0,0.00013857,2]
[383503528,1756963847835,-480.0,0.00013857,2]
[383503529,1756963847845,-480.0,0.00013857,2]
[383503530,1756963847855,-480.0,0.00013857,2]
[383503531,1756963847865,-480.0,0.00013857,2]
[383503532,1756963847874,-480.0,0.00013857,2]
[383503533,1756963847883,-482.8374452,0.00013857,2]
[383503534,1756963847892,-480.0,0.00013857,2]
[383503535,1756963847902,-482.63681644,0.00013857,2]
[383503536,1756963847912,-480.0,0.00013857,2]
[383503537,1756963847923,-519.73,0.00013857,2]
[383503538,1756963847933,-486.88020246,0.00013857,2]
[383503539,1756963847944,-484.9937741,0.00013857,2]
[383503540,1756963847955,-480.0,0.00013857,2]
[383503541,1756963847964,-480.0,0.00013857,2]
[383503542,1756963847974,-480.0,0.00013857,2]
[383503543,1756963847983,-482.04229667,0.00013857,2]
[383503544,1756963847993,-480.0,0.00013857,2]
[383503545,1756963848002,-480.0,0.00013857,2]
[383503546,1756963848012,-480.0,0.00013857,2]
[383503547,1756963848021,-480.0,0.00013857,2]
[383503548,1756963848031,-480.0,0.00013857,2]
[383503549,1756963848040,-480.0,0.00013857,2]
[383503550,1756963848049,-480.0,0.00013857,2]
[383503551,1756963848059,-151.0,0.00013863,2]
[383503552,1756963848069,-151.0,0.00013863,2]
[383503553,1756963848079,-151.0,0.00013863,2]
[383503554,1756963848088,-204.70594,0.00013863,2]
[383503555,1756963848098,-151.0,0.00013863,2]
[383503556,1756963848107,-208.466486,0.00013863,2]
[383503557,1756963848117,-151.0,0.00013863,2]
[383503558,1756963848126,-151.0,0.00013863,2]
[383503559,1756963848136,-151.0,0.00013863,2]
[383503560,1756963848146,-221.555421,0.00013863,2]
[383503561,1756963848156,-154.338481,0.00013863,2]
[383503562,1756963848166,-151.0,0.00013863,2]
[383503563,1756963848175,-151.0,0.00013863,2]
[383503564,1756963848185,-151.0,0.00013863,2]
[383503565,1756963848195,-151.0,0.00013863,2]
[383503566,1756963848204,-151.0,0.00013863,2]
[383503567,1756963848214,-217.458759,0.00013863,2]
[383503568,1756963848223,-217.458759,0.00013863,2]
[383503569,1756963848233,-151.0,0.00013863,2]
[383503570,1756963848243,-151.0,0.00013863,2]
[383503571,1756963848253,-217.458759,0.00013863,2]
[383503572,1756963848262,-151.0,0.00013863,2]
[383503573,1756963848272,-151.0,0.00013863,2]
[383503574,1756963848281,-217.458759,0.00013863,2]
[383503575,1756963848291,-151.0,0.00013863,2]
[383503576,1756963848300,-151.0,0.00013863,2]
[383503577,1756963848310,-151.0,0.00013863,2]
[383503578,1756963848320,-186.516963,0.00013863,2]
[383503579,1756963848329,-186.516963,0.00013863,2]
[383503580,1756963848339,-186.516963,0.00013863,2]
[383503581,1756963848349,-186.516963,0.00013863,2]
[383503582,1756963848359,-151.0,0.00013863,2]
[383503583,1756963848368,-151.0,0.00013863,2]
[383503584,1756963848378,-151.0,0.00013863,2]
[383503585,1756963848387,-151.0,0.00013863,2]
[383503586,1756963848397,-151.0,0.00013863,2]
[383503587,1756963848407,-151.0,0.00013863,2]
[383503588,1756963848416,-151.0,0.00013863,2]
[383503589,1756963848425,-151.0,0.00013864,2]
[383503590,1756963848435,-151.0,0.00013864,2]
[383503591,1756963848444,-193.173456,0.00013864,2]
[383503592,1756963848454,-151.0,0.00013864,2]
[383503593,1756963848463,-151.0,0.00013864,2]
[383503594,1756963848473,-151.0,0.00013864,2]
[383503595,1756963848483,-151.0,0.00013864,2]
[383503596,1756963848492,-151.0,0.00013864,2]
[383503597,1756963848502,-293.48106,0.00013864,2]
[383503598,1756963848512,-297.767389,0.00013864,2]
[383503599,1756963848522,-293.48106,0.00013864,2]
[383503600,1756963848531,-297.767389,0.00013864,2]
[383503601,1756963848541,-293.48106,0.00013864,2]
[383503602,1756963848650,-297.767389,0.00013864,2]
[383503603,1756963848661,-151.0,0.00013864,2]
[383503604,1756963848671,-293.48106,0.00013864,2]
[383503605,1756963848681,-297.767389,0.00013864,2]
[383503606,1756963848691,-198.144606,0.00013864,2]
[383503607,1756963848703,-198.144606,0.00013864,2]
[383503608,1756963848713,-198.144606,0.00013864,2]
[383503609,1756963848722,-198.144606,0.00013864,2]
[383503610,1756963848732,-238.074633,0.00013864,2]
[383503611,1756963848742,-238.074633,0.00013864,2]
[383503612,1756963848751,-238.074633,0.00013864,2]
[383503613,1756963848760,-238.074633,0.00013864,2]
[383503614,1756963848770,-151.0,0.00013864,2]
[383503615,1756963848779,-151.0,0.00013864,2]
[383503616,1756963848788,-1030.973401,0.00013864,2]
[383503617,1756963848797,-1030.973401,0.00013864,2]
[383503618,1756963848807,-1030.973401,0.00013864,2]
[383503619,1756963848817,-1030.973401,0.00013864,2]
[383503620,1756963848826,-180.632282,0.00013864,2]
[383503621,1756963848835,-180.632282,0.00013864,2]
[383503622,1756963848845,-180.632282,0.00013864,2]
[383503623,1756963848854,-180.632282,0.00013864,2]
[383503624,1756963848863,-151.0,0.00013864,2]
[383503625,1756963848872,-221.632661,0.00013864,2]
[383503626,1756963848881,-151.0,0.00013864,2]
[383503627,1756963848890,-221.632661,0.00013864,2]
[383503628,1756963848899,-221.632661,0.00013864,2]
[383503629,1756963848908,-221.632661,0.00013864,2]
[383503630,1756963848917,-151.0,0.00013864,2]
[383503631,1756963848927,-151.0,0.00013864,2]
[383503632,1756963848935,-151.0,0.00013864,2]
[383503633,1756963848945,-151.0,0.00013864,2]
[383503634,1756963848954,-151.0,0.00013864,2]
[383503635,1756963848963,-151.0,0.00013864,2]
[383503636,1756963848972,-151.0,0.00013864,2]
[383503637,1756963848981,-151.0,0.00013864,2]
[383503638,1756963848990,-286.377505,0.00013864,2]
[383503639,1756963848999,-151.0,0.00013864,2]
[383503640,1756963849008,-151.0,0.00013864,2]
[383503641,1756963849017,-480.73213003,0.00013865,2]
[383503642,1756963849026,-480.70869779,0.00013865,2]
[383503643,1756963849035,-480.0,0.00013865,2]
[383503644,1756963849045,-480.0,0.00013865,2]
[383503645,1756963849055,-482.8630462,0.00013865,2]
[383503646,1756963849065,-480.0,0.00013865,2]
[383503647,1756963849074,-480.0,0.00013865,2]
[383503648,1756963849083,-480.0,0.00013865,2]
[383503649,1756963849093,-480.0,0.00013865,2]
[383503650,1756963849102,-480.0,0.00013865,2]
[383503651,1756963849111,-480.0,0.00013865,2]
[383503652,1756963849121,-151.0,0.00013865,2]
[383503653,1756963849131,-151.0,0.00013865,2]
[383503654,1756963849140,-480.0,0.00013865,2]
[383503655,1756963849150,-482.42310705,0.00013865,2]
[383503656,1756963849159,-480.0,0.00013865,2]
[383503657,1756963849169,-480.0,0.00013865,2]
[383503658,1756963849179,-151.0,0.00013865,2]
[383503659,1756963849188,-151.0,0.00013865,2]
[383503660,1756963849197,-151.0,0.00013865,2]
[383503661,1756963849207,-151.0,0.00013865,2]
[383503662,1756963849216,-151.0,0.00013865,2]
[383503663,1756963849225,-151.0,0.00013865,2]
[383503664,1756963849235,-151.0,0.00013865,2]
[383503665,1756963849245,-151.0,0.00013865,2]
[383503666,1756963849254,-151.0,0.00013865,2]
[383503667,1756963849263,-151.0,0.00013865,2]
[383503668,1756963849273,-151.0,0.00013865,2]
[383503669,1756963849282,-151.0,0.00013865,2]
[383503670,1756963849291,-151.0,0.00013865,2]
[383503671,1756963849301,-151.0,0.00013865,2]
[383503672,1756963849310,-151.0,0.00013865,2]
[383503673,1756963849319,-151.0,0.00013865,2]
[383503674,1756963849329,-151.0,0.00013865,2]
[383503675,1756963849338,-151.0,0.00013865,2]
[383503676,1756963849347,-151.0,0.00013865,2]
[383503677,1756963849357,-151.0,0.00013865,2]
[383503678,1756963849366,-151.0,0.00013865,2]
[383503679,1756963849375,-270.404566,0.00013865,2]
[383503680,1756963849384,-298.68147,0.00013865,2]
[383503681,1756963849393,-151.0,0.00013865,2]
[383503682,1756963849402,-151.0,0.00013865,2]
[383503683,1756963849412,-217.458759,0.00013865,2]
[383503684,1756963849421,-217.458759,0.00013865,2]
[383503685,1756963849431,-151.0,0.00013865,2]
[383503686,1756963849441,-151.0,0.00013865,2]
[383503687,1756963849451,-217.458759,0.00013865,2]
[383503688,1756963849460,-195.138632,0.00013865,2]
[383503689,1756963849470,-217.458759,0.00013865,2]
[383503690,1756963849479,-151.319919,0.00013865,2]
[383503691,1756963849489,-151.0,0.00013865,2]
[383503692,1756963849499,-151.0,0.00013865,2]
[383503693,1756963849509,-186.516963,0.00013865,2]
[383503694,1756963849519,-186.516963,0.00013865,2]
[383503695,1756963849529,-186.516963,0.00013865,2]
[383503696,1756963849538,-186.516963,0.00013865,2]
[383503697,1756963849547,-151.0,0.00013865,2]
[383503698,1756963849557,-151.0,0.00013865,2]
[383503699,1756963849567,-151.0,0.00013865,2]
[383503700,1756963849576,-262.080704,0.00013865,2]
[383503701,1756963849586,-151.0,0.00013865,2]
[383503702,1756963849595,-151.0,0.00013865,2]
[383503703,1756963849604,-151.0,0.00013865,2]
[383503704,1756963849614,-151.0,0.00013865,2]
[383503705,1756963849623,-151.0,0.00013865,2]
[383503706,1756963849632,-151.0,0.00013865,2]
[383503707,1756963849641,-151.0,0.00013865,2]
[383503708,1756963849650,-151.0,0.00013866,2]
[383503709,1756963849659,-151.0,0.00013866,2]
[383503710,1756963849669,-151.0,0.00013866,2]
[383503711,1756963849678,-151.0,0.00013866,2]
[383503712,1756963849687,-151.0,0.00013866,2]
[383503713,1756963849697,-260.102648,0.00013866,2]
[383503714,1756963849711,-151.0,0.00013866,2]
[383503715,1756963849721,-500.0,0.00013873,2]
[383503716,1756963849730,-500.0,0.00013873,2]
[383503717,1756963849739,-500.0,0.00013972,2]
[383503718,1756963849751,-480.0,0.00013972,2]
[383503719,1756963849766,-480.0,0.00013972,2]
[383503720,1756963849778,-480.0,0.00013972,2]
[383503721,1756963849787,-480.0,0.00013972,2]
[383503722,1756963849796,-480.0,0.00013972,2]
[383503723,1756963849805,-480.0,0.00013972,2]
[383503724,1756963849815,-278.34529345,0.00013972,2]
[383503725,1756963849825,-313.87411432,0.00013972,2]
[383503726,1756963849835,-480.0,0.00013972,2]
[383503727,1756963849844,-480.0,0.00013972,2]
[383503728,1756963849853,-480.0,0.00013972,2]
[383503729,1756963849862,-480.0,0.00013972,2]
[383503730,1756963849875,-480.0,0.00013972,2]
[383503731,1756963849883,-480.0,0.00013972,2]
[383503732,1756963849891,-480.0,0.00013972,2]
[383503733,1756963849900,-480.0,0.00013972,2]
[383503734,1756963849909,-480.0,0.00013972,2]
[383503735,1756963849918,-480.0,0.00013972,2]
[383503736,1756963849929,-480.0,0.00013972,2]
[383503737,1756963849938,-480.0,0.00013972,2]
[383503738,1756963849947,-480.0,0.00013972,2]
[383503739,1756963849958,-480.0,0.00013972,2]
[383503740,1756963849967,-480.0,0.00013972,2]
[383503741,1756963849976,-480.0,0.00013972,2]
[383503742,1756963849986,-480.0,0.00013972,2]
[383503743,1756963849995,-480.0,0.00013972,2]
[383503744,1756963850004,-480.0,0.00013972,2]
[383503745,1756963850015,-480.0,0.00013972,2]
[383503746,1756963850025,-480.0,0.00013972,2]
[383503747,1756963850034,-480.0,0.00013972,2]
[383503748,1756963850043,-480.0,0.00013972,2]
[383503749,1756963850053,-480.0,0.00013972,2]
[383503750,1756963850063,-480.0,0.00013972,2]
[383503751,1756963850073,-480.0,0.00013972,2]
[383503752,1756963850083,-480.0,0.00013972,2]
[383503753,1756963850092,-230.74040021,0.00013972,2]
[383503754,1756963850101,-480.0,0.00013972,2]
[383503755,1756963850111,-480.0,0.00013972,2]
[383503756,1756963850120,-480.0,0.00013972,2]
[383503757,1756963850130,-322.19738333,0.00013972,2]
[383503758,1756963850141,-480.0,0.00013972,2]
[383503759,1756963850152,-480.0,0.00013972,2]
[383503760,1756963850162,-480.0,0.00013972,2]
[383503761,1756963850171,-480.0,0.00013972,2]
[383503762,1756963850181,-480.0,0.00013972,2]
[383503763,1756963850191,-151.0,0.00013972,2]
[383503764,1756963850200,-275.30697,0.00013972,2]
[383503765,1756963850210,-151.0,0.00013972,2]
[383503766,1756963850220,-289.09056,0.00013972,2]
[383503767,1756963850229,-487.77,0.00013972,2]
[383503768,1756963850239,-480.0,0.00013972,2]
[383503769,1756963850249,-480.0,0.00013972,2]
[383503770,1756963850259,-480.0,0.00013972,2]
[383503771,1756963850269,-495.80694146,0.00013972,2]
[383503772,1756963850278,-480.0,0.00013972,2]
[383503773,1756963850287,-703.74,0.00013972,2]
[383503774,1756963850297,-293.48106,0.00013972,2]
[383503775,1756963850307,-482.97016177,0.00013972,2]
[383503776,1756963850317,-297.767389,0.00013972,2]
[383503777,1756963850327,-293.48106,0.00013972,2]
[383503778,1756963850337,-297.767389,0.00013972,2]
[383503779,1756963850346,-293.48106,0.00013972,2]
[383503780,1756963850356,-297.767389,0.00013972,2]
[383503781,1756963850366,-151.0,0.00013972,2]
[383503782,1756963850375,-293.481058,0.00013972,2]
[383503783,1756963850385,-480.0,0.00013972,2]
[383503784,1756963850394,-297.767385,0.00013972,2]
[383503785,1756963850404,-480.0,0.00013972,2]
[383503786,1756963850413,-480.0,0.00013972,2]
[383503787,1756963850423,-480.0,0.00013972,2]
[383503788,1756963850432,-287.38560881,0.00013972,2]
[383503789,1756963850442,-480.0,0.00013972,2]
[383503790,1756963850451,-198.144606,0.00013972,2]
[383503791,1756963850461,-480.0,0.00013972,2]
[383503792,1756963850470,-198.144606,0.00013972,2]
[383503793,1756963850480,-480.0,0.00013972,2]
[383503794,1756963850489,-198.144606,0.00013972,2]
[383503795,1756963850498,-480.0,0.00013972,2]
[383503796,1756963850508,-198.144598,0.00013972,2]
[383503797,1756963850518,-577.04675816,0.00013972,2]
[383503798,1756963850528,-795.6,0.00013972,2]
[383503799,1756963850538,-238.074633,0.00013972,2]
[383503800,1756963850548,-480.0,0.00013972,2]
[383503801,1756963850557,-238.074633,0.00013972,2]
[383503802,1756963850567,-238.074633,0.00013972,2]
[383503803,1756963850577,-480.0,0.00013972,2]
[383503804,1756963850586,-238.074629,0.00013972,2]
[383503805,1756963850595,-480.0,0.00013972,2]
[383503806,1756963850604,-151.0,0.00013972,2]
[383503807,1756963850614,-151.0,0.00013972,2]
[383503808,1756963850624,-1384.02,0.00013972,2]
[383503809,1756963850633,-1030.973401,0.00013972,2]
[383503810,1756963850643,-1030.973401,0.00013972,2]
[383503811,1756963850652,-1030.973401,0.00013972,2]
[383503812,1756963850661,-1030.973397,0.00013972,2]
[383503813,1756963850671,-480.0,0.00013972,2]
[383503814,1756963850766,-180.632282,0.00013972,2]
[383503815,1756963850775,-480.0,0.00013972,2]
[383503816,1756963850785,-180.632282,0.00013972,2]
[383503817,1756963850794,-1591.8,0.00013972,2]
[383503818,1756963850804,-180.632282,0.00013972,2]
[383503819,1756963850814,-180.63229,0.00013972,2]
[383503820,1756963850828,-480.0,0.00013972,2]
[383503821,1756963850837,-151.0,0.00013972,2]
[383503822,1756963850847,-480.0,0.00013972,2]
[383503823,1756963850856,-221.632661,0.00013972,2]
[383503824,1756963850866,-151.0,0.00013972,2]
[383503825,1756963850876,-512.87,0.00013972,2]
[383503826,1756963850885,-221.632661,0.00013972,2]
[383503827,1756963850894,-221.632661,0.00013972,2]
[383503828,1756963850903,-1095.25,0.00013972,2]
[383503829,1756963850913,-501.16,0.00013972,2]
[383503830,1756963850922,-221.632657,0.00013972,2]
[383503831,1756963850932,-151.0,0.00013972,2]
[383503832,1756963850941,-151.0,0.00013972,2]
[383503833,1756963850951,-151.0,0.00013972,2]
[383503834,1756963850960,-480.0,0.00013972,2]
[383503835,1756963850969,-480.0,0.00013972,2]
[383503836,1756963850979,-1164.12,0.00013972,2]
[383503837,1756963850988,-482.7276579,0.00013972,2]
[383503838,1756963850997,-480.0,0.00013972,2]
[383503839,1756963851007,-480.0,0.00013972,2]
[383503840,1756963851016,-480.0,0.00013972,2]
[383503841,1756963851026,-547.67707713,0.00013972,2]
[383503842,1756963851035,-480.0,0.00013972,2]
[383503843,1756963851044,-480.0,0.00013972,2]
[383503844,1756963851054,-480.0,0.00013972,2]
[383503845,1756963851063,-252.05955794,0.00013972,2]
[383503846,1756963851073,-480.0,0.00013972,2]
[383503847,1756963851082,-480.0,0.00013972,2]
[383503848,1756963851091,-1707.61,0.00013972,2]
[383503849,1756963851101,-480.0,0.00013972,2]
[383503850,1756963851110,-480.0,0.00013972,2]
[383503851,1756963851120,-3428.79,0.00013972,2]
[383503852,1756963851129,-480.0,0.00013972,2]
[383503853,1756963851138,-480.0,0.00013972,2]
[383503854,1756963851148,-480.0,0.00013972,2]
[383503855,1756963851158,-486.50230683,0.00013972,2]
[383503856,1756963851167,-758.68,0.00013972,2]
[383503857,1756963851177,-480.0,0.00013972,2]
[383503858,1756963851186,-480.0,0.00013972,2]
[383503859,1756963851195,-480.0,0.00013972,2]
[383503860,1756963851205,-480.0,0.00013972,2]
[383503861,1756963851214,-480.0,0.00013972,2]
[383503862,1756963851225,-480.0,0.00013972,2]
[383503863,1756963851235,-480.0,0.00013972,2]
[383503864,1756963851244,-651.21,0.00013972,2]
[383503865,1756963851253,-480.0,0.00013972,2]
[383503866,1756963851263,-481.78186912,0.00013972,2]
[383503867,1756963851272,-480.0,0.00013972,2]
[383503868,1756963851282,-934.39,0.00013972,2]
[383503869,1756963851292,-480.0,0.00013972,2]
[383503870,1756963851301,-480.0,0.00013972,2]
[383503871,1756963851311,-480.0,0.00013972,2]
[383503872,1756963851321,-480.0,0.00013972,2]
[383503873,1756963851330,-480.0,0.00013972,2]
[383503874,1756963851339,-480.0,0.00013972,2]
[383503875,1756963851348,-480.0,0.00013972,2]
[383503876,1756963851357,-1173.38,0.00013972,2]
[383503877,1756963851367,-480.0,0.00013972,2]
[383503878,1756963851376,-1569.65,0.00013972,2]
[383503879,1756963851385,-599.79,0.00013972,2]
[383503880,1756963851394,-480.0,0.00013972,2]
[383503881,1756963851403,-480.0,0.00013972,2]
[383503882,1756963851413,-480.0,0.00013972,2]
[383503883,1756963851423,-480.0,0.00013972,2]
[383503884,1756963851433,-1915.98,0.00013972,2]
[383503885,1756963851444,-1491.41,0.00013972,2]
[383503886,1756963851455,-480.0,0.00013972,2]
[383503887,1756963851465,-433.91579988,0.00013972,2]
[383503888,1756963851474,-3299.08000684,0.0001399,2]
[383503889,1756963851620,-3241.23471311,0.0001399,2]
[383503890,1756963851750,-458.51187522,0.00013698,2]
[383503891,1756963851759,-151.0,0.00013761,2]
[383503892,1756963851768,-151.0,0.00013761,2]
[383503893,1756963851779,-151.0,0.00013763,2]
[383503894,1756963851788,-279.263466,0.00013865,2]
[383503895,1756963851797,-480.0,0.00013972,2]
[383503896,1756963851806,-93459.68528005,0.0001399,2]
[383503897,1756963851816,-151.0,0.0001399,2]
[383503898,1756963851826,-186.516963,0.0001399,2]
[383503899,1756963851835,-186.516963,0.0001399,2]
[383503900,1756963851844,-186.516963,0.0001399,2]
[383503901,1756963851854,-186.516963,0.0001399,2]
[383503902,1756963851863,-250.909284,0.0001399,2]
[383503903,1756963851872,-151.0,0.0001399,2]
[383503904,1756963851881,-151.0,0.0001399,2]
[383503905,1756963851890,-151.0,0.0001399,2]
[383503906,1756963851899,-151.0,0.0001399,2]
[383503907,1756963851908,-151.0,0.0001399,2]
[383503908,1756963851917,-151.0,0.0001399,2]
[383503909,1756963851926,-151.0,0.0001399,2]
[383503910,1756963851936,-151.0,0.0001399,2]
[383503911,1756963851945,-151.0,0.0001399,2]
[383503912,1756963851954,-287.349545,0.0001399,2]
[383503913,1756963851964,-480.0,0.00014034,2]
[383503914,1756963851973,-480.0,0.00014034,2]
[383503915,1756963851983,-480.0,0.00014035,2]
[383503916,1756963851994,-480.0,0.00014035,2]
[383503917,1756963852005,-480.0,0.00014035,2]
[383503918,1756963852014,-480.0,0.00014035,2]
[383503919,1756963852024,-480.0,0.00014035,2]
[383503920,1756963852034,-482.14594611,0.00014035,2]
[383503921,1756963852043,-480.0,0.00014035,2]
[383503922,1756963852053,-297.16256522,0.00014035,2]
[383503923,1756963852245,-150.90938139,0.00014035,2]
[383503924,1756963944554,357.88,0.00027397,120]
[383503927,1756964144757,523.47889837,0.00029791,60]
[383503928,1756964282308,161.0,0.000144,4]
[383503929,1756964283156,161.0,0.000144,4]
[383503930,1756964347779,161.0,0.000152,6]
[383503971,1756964607181,538.1633098,0.00012714,2]
[383503980,1756964659150,7479.639487,0.00014,15]
[383503981,1756964659179,92531.53408496,0.00014,15]
[383503989,1756964787889,2076.176,0.00027397,120]
[383504043,1756965031768,-2400.0,0.000135,2]
[383504047,1756965031827,-29444.49941193,0.000135,2]
[383504270,1756965040058,-340.365,0.00013499,2]
[383507349,1756965195622,3000.0,0.00025,30]
[383507357,1756965256835,-1892.73394327,0.00013399,2]
[383507375,1756965298140,4010.06131586,0.00025,30]
[383507432,1756965502511,-1200.0,0.00013397,2]
[383507433,1756965502541,-300.0,0.00013397,2]
[383507434,1756965502570,-500.0,0.00013398,2]
[383507435,1756965502660,-3886.49636259,0.00013398,2]
[383507463,1756965637917,-300.0,0.00013396,2]
[383507464,1756965637945,-300.0,0.00013396,2]
[383507465,1756965637973,-300.0,0.00013396,2]
[383507466,1756965638001,-300.0,0.00013396,2]
[383507467,1756965638029,-300.0,0.00013396,2]
[383507468,1756965638056,-1200.0,0.00013396,2]
[383507469,1756965638084,-547.99703242,0.00013397,2]
[383507470,1756965638113,-631.78401621,0.00013397,2]
[383507471,1756965638145,-631.78401621,0.00013397,2]
[383507472,1756965638175,-345.09585411,0.00013397,2]
[383507473,1756965638355,-286.6881621,0.00013397,2]
[383507478,1756965667512,-300.0,0.00013395,2]
[383507479,1756965667540,-500.0,0.00013396,2]
[383507480,1756965667568,-500.0,0.00013396,2]
[383507481,1756965667596,-456.36249695,0.00013396,2]
[383507482,1756965667625,-563.96363434,0.00013396,2]
[383507483,1756965667652,-500.0,0.00013396,2]
[383507484,1756965667682,-278.31565323,0.00013396,2]
[383507485,1756965667710,-500.0,0.00013396,2]
[383507486,1756965667739,-500.0,0.00013396,2]
[383507487,1756965667768,-500.0,0.00013396,2]
[383507488,1756965667794,-202.99908489,0.00013396,2]
[383507489,1756965667968,-396.72826118,0.00013396,2]
[383507505,1756965838931,236.57525097,0.00012993,2]
[383507508,1756965871941,-9763.43474903,0.00013395,2]
[383507509,1756965877528,-383.5979227,0.00013394,2]
[383507510,1756965877558,-612.83049572,0.00013394,2]
[383507511,1756965877587,-612.83049572,0.00013394,2]
[383507512,1756965877617,-612.83049572,0.00013394,2]
[383507513,1756965877647,-612.83049572,0.00013394,2]
[383507514,1756965877677,-612.83049572,0.00013394,2]
[383507515,1756965877707,-612.83049572,0.00013394,2]